[Event "*** Titled Tuesday Blitz"]
[Site "Chess.com"]
[Date "2020.05.05"]
[Round "4"]
[White "2346PL"]
[Black "GMKrikor"]
[Result "0-1"]
[WhiteElo "2360"]
[BlackElo "2850"]
[TimeControl "180+1"]
[EndTime "10:40:30 PDT"]
[Termination "GMKrikor won by resignation"]

1. d4 {[%clk 0:03:00.9]} 1... Nf6 {[%clk 0:02:51.7]} 2. Bg5 {[%clk 0:03:00.8]}
2... d5 {[%clk 0:02:51.2]} 3. e3 {[%clk 0:03:00.1]} 3... c5 {[%clk 0:02:50.9]}
4. Nc3 {[%clk 0:02:57.6]} 4... Nc6 {[%clk 0:02:43.7]} 5. Nf3 {[%clk 0:02:56.2]}
5... cxd4 {[%clk 0:02:31.1]} 6. exd4 {[%clk 0:02:54.5]} 6... Bg4 {[%clk
0:02:30.1]} 7. Be2 {[%clk 0:02:51.6]} 7... Bxf3 {[%clk 0:02:28.6]} 8. Bxf3
{[%clk 0:02:51.4]} 8... e6 {[%clk 0:02:29]} 9. O-O {[%clk 0:02:46.8]} 9... Be7
{[%clk 0:02:27.7]} 10. Ne2 {[%clk 0:02:47.3]} 10... O-O {[%clk 0:02:26.6]} 11.
Qd3 {[%clk 0:02:39.4]} 11... Qb6 {[%clk 0:02:11.1]} 12. Rab1 {[%clk 0:02:37.5]}
12... Nb4 {[%clk 0:02:10.6]} 13. Qd2 {[%clk 0:02:32]} 13... Rac8 {[%clk
0:02:04.3]} 14. c3 {[%clk 0:02:31.1]} 14... Nc6 {[%clk 0:02:03.3]} 15. Nf4
{[%clk 0:02:26.2]} 15... Na5 {[%clk 0:02:01]} 16. Nd3 {[%clk 0:02:22.7]} 16...
Nc4 {[%clk 0:02:00.6]} 17. Qf4 {[%clk 0:02:22.8]} 17... h6 {[%clk 0:01:52.1]}
18. Bxf6 {[%clk 0:02:21]} 18... Bxf6 {[%clk 0:01:51.7]} 19. h4 {[%clk
0:02:16.4]} 19... Qc7 {[%clk 0:01:47.5]} 20. h5 {[%clk 0:01:34.3]} 20... Qxf4
{[%clk 0:01:35.5]} 21. Nxf4 {[%clk 0:01:35.2]} 21... Nd2 {[%clk 0:01:33.9]} 22.
Rbd1 {[%clk 0:01:35.7]} 22... Nxf1 {[%clk 0:01:32.2]} 23. Kxf1 {[%clk
0:01:34.4]} 23... b5 {[%clk 0:01:26.5]} 24. Nd3 {[%clk 0:01:32.3]} 24... Be7
{[%clk 0:01:26.8]} 25. Be2 {[%clk 0:01:30.1]} 25... a5 {[%clk 0:01:25.8]} 26. a3
{[%clk 0:01:29.9]} 26... b4 {[%clk 0:01:26.1]} 27. cxb4 {[%clk 0:01:15.7]} 27...
axb4 {[%clk 0:01:27]} 28. Nxb4 {[%clk 0:01:16.1]} 28... Bxb4 {[%clk 0:01:20.6]}
29. axb4 {[%clk 0:01:17]} 29... Rc2 {[%clk 0:01:20.8]} 30. b5 {[%clk 0:00:49.4]}
30... Rxb2 {[%clk 0:01:19.6]} 31. f4 {[%clk 0:00:43.8]} 31... Rb8 {[%clk
0:01:17.4]} 32. Ra1 {[%clk 0:00:37.4]} 32... Rb4 {[%clk 0:01:16.8]} 33. Rd1
{[%clk 0:00:36.4]} 33... Kf8 {[%clk 0:01:14.9]} 34. Kf2 {[%clk 0:00:36.1]} 34...
Ke7 {[%clk 0:01:15.3]} 35. g4 {[%clk 0:00:36.6]} 35... Kf6 {[%clk 0:01:12.1]}
36. Ke3 {[%clk 0:00:35.7]} 36... Rb3+ {[%clk 0:01:11.5]} 37. Kf2 {[%clk
0:00:35.4]} 37... Rc8 {[%clk 0:01:10.8]} 38. Rd2 {[%clk 0:00:32.8]} 38... Rc1
{[%clk 0:01:09.2]} 39. Ra2 {[%clk 0:00:30.9]} 39... Rh1 {[%clk 0:01:05.3]} 40.
Bf1 {[%clk 0:00:20.6]} 40... Rb1 {[%clk 0:00:50.2]} 41. Bg2 {[%clk 0:00:19.6]}
41... Rhd1 {[%clk 0:00:49]} 42. Bf3 {[%clk 0:00:12.8]} 42... Rxd4 {[%clk
0:00:48.2]} 43. Ke3 {[%clk 0:00:10.5]} 43... Rdb4 {[%clk 0:00:47.4]} 44. Be2
{[%clk 0:00:10.4]} 44... R1b3+ {[%clk 0:00:47.2]} 45. Kf2 {[%clk 0:00:10.5]}
45... Rb2 {[%clk 0:00:47.8]} 46. Ra7 {[%clk 0:00:07.2]} 46... Rxf4+ {[%clk
0:00:47.3]} 0-1

[Event "*** Titled Tuesday Blitz"]
[Site "Chess.com"]
[Date "2020.05.05"]
[Round "4"]
[White "MartinMatthiesen"]
[Black "ftorodent"]
[Result "0-1"]
[WhiteElo "2473"]
[BlackElo "2675"]
[TimeControl "180+1"]
[EndTime "10:40:31 PDT"]
[Termination "ftorodent won on time"]

1. d4 {[%clk 0:03:00.9]} 1... f5 {[%clk 0:02:59.3]} 2. Nf3 {[%clk 0:02:59.7]}
2... Nf6 {[%clk 0:02:59.1]} 3. g3 {[%clk 0:02:59.8]} 3... g6 {[%clk 0:02:59]} 4.
Bg2 {[%clk 0:03:00]} 4... Bg7 {[%clk 0:02:59.1]} 5. O-O {[%clk 0:03:00.1]} 5...
O-O {[%clk 0:02:59.1]} 6. c4 {[%clk 0:03:00.1]} 6... d6 {[%clk 0:02:59.3]} 7.
Nc3 {[%clk 0:02:59.9]} 7... Qe8 {[%clk 0:02:59.5]} 8. d5 {[%clk 0:02:44.5]} 8...
a5 {[%clk 0:02:58.3]} 9. Nd4 {[%clk 0:02:42.5]} 9... Na6 {[%clk 0:02:57.4]} 10.
b3 {[%clk 0:02:40.3]} 10... Bd7 {[%clk 0:02:53.1]} 11. Bb2 {[%clk 0:02:40.1]}
11... Nc5 {[%clk 0:02:50.7]} 12. Qc2 {[%clk 0:02:36.2]} 12... c6 {[%clk
0:02:49]} 13. Rae1 {[%clk 0:02:31.9]} 13... Rc8 {[%clk 0:02:35.7]} 14. e3 {[%clk
0:02:10.3]} 14... Qf7 {[%clk 0:02:20.1]} 15. Re2 {[%clk 0:02:07.1]} 15... Nce4
{[%clk 0:01:40.5]} 16. Nxe4 {[%clk 0:01:58.8]} 16... fxe4 {[%clk 0:01:39.6]} 17.
Bxe4 {[%clk 0:01:58.7]} 17... cxd5 {[%clk 0:01:38.3]} 18. Bg2 {[%clk 0:01:50.3]}
18... dxc4 {[%clk 0:01:34.1]} 19. Bxb7 {[%clk 0:01:47.5]} 19... cxb3 {[%clk
0:01:27.2]} 20. Qxb3 {[%clk 0:01:39.6]} 20... Qxb3 {[%clk 0:01:26.9]} 21. axb3
{[%clk 0:01:39.3]} 21... Rb8 {[%clk 0:01:25.6]} 22. Bc6 {[%clk 0:01:29.1]} 22...
Bh3 {[%clk 0:01:21.6]} 23. Bg2 {[%clk 0:01:12.6]} 23... Bxg2 {[%clk 0:01:12.7]}
24. Kxg2 {[%clk 0:01:12.2]} 24... Rfc8 {[%clk 0:01:12.7]} 25. Rc1 {[%clk
0:00:58.6]} 25... Rxc1 {[%clk 0:01:07.6]} 26. Bxc1 {[%clk 0:00:58.6]} 26... Nd5
{[%clk 0:01:04.6]} 27. Nc6 {[%clk 0:00:29]} 27... Rc8 {[%clk 0:01:01.6]} 28. Rc2
{[%clk 0:00:19.8]} 28... Kf8 {[%clk 0:00:54.6]} 29. Rc4 {[%clk 0:00:17]} 29...
Nb6 {[%clk 0:00:51.3]} 30. Rc2 {[%clk 0:00:14.6]} 30... Ke8 {[%clk 0:00:48.1]}
31. Bd2 {[%clk 0:00:03.5]} 31... Kd7 {[%clk 0:00:35.2]} 32. Nd4 {[%clk
0:00:03.5]} 32... Bxd4 {[%clk 0:00:34.7]} 33. Rxc8 {[%clk 0:00:03.1]} 33... Kxc8
{[%clk 0:00:34.6]} 34. exd4 {[%clk 0:00:03.4]} 34... a4 {[%clk 0:00:34.3]} 35.
bxa4 {[%clk 0:00:01.9]} 35... Nxa4 {[%clk 0:00:34.2]} 36. Kf3 {[%clk 0:00:02.8]}
36... Kd7 {[%clk 0:00:32.7]} 37. Ke4 {[%clk 0:00:03.2]} 37... e6 {[%clk
0:00:32.3]} 0-1

[Event "*** Titled Tuesday Blitz"]
[Site "Chess.com"]
[Date "2020.05.05"]
[Round "4"]
[White "kasparicy"]
[Black "Usurpov"]
[Result "1-0"]
[WhiteElo "2305"]
[BlackElo "2451"]
[TimeControl "180+1"]
[EndTime "10:40:32 PDT"]
[Termination "kasparicy won by resignation"]

1. e4 {[%clk 0:03:00.9]} 1... c5 {[%clk 0:02:59.5]} 2. Nf3 {[%clk 0:03:00.6]}
2... e6 {[%clk 0:02:59.9]} 3. d4 {[%clk 0:03:01.2]} 3... cxd4 {[%clk 0:03:00.8]}
4. Nxd4 {[%clk 0:03:01.8]} 4... Nf6 {[%clk 0:03:01.2]} 5. Nc3 {[%clk 0:02:55.4]}
5... Nc6 {[%clk 0:03:01.2]} 6. Be3 {[%clk 0:02:47]} 6... Bb4 {[%clk 0:03:00.5]}
7. Bd3 {[%clk 0:02:23.7]} 7... d5 {[%clk 0:02:59.3]} 8. exd5 {[%clk 0:02:20.3]}
8... Nxd5 {[%clk 0:02:58.2]} 9. Nxc6 {[%clk 0:02:21.2]} 9... bxc6 {[%clk
0:02:58.6]} 10. Bd2 {[%clk 0:02:10]} 10... O-O {[%clk 0:02:54]} 11. O-O {[%clk
0:02:08.2]} 11... Rb8 {[%clk 0:02:51.2]} 12. Qe2 {[%clk 0:02:02.5]} 12... Nxc3
{[%clk 0:02:28.6]} 13. bxc3 {[%clk 0:01:59.9]} 13... Bd6 {[%clk 0:02:26.9]} 14.
Rad1 {[%clk 0:01:58.7]} 14... Qc7 {[%clk 0:02:20.1]} 15. Qh5 {[%clk 0:01:58]}
15... g6 {[%clk 0:02:19]} 16. Qh4 {[%clk 0:01:58.5]} 16... e5 {[%clk 0:01:54.9]}
17. Bc4 {[%clk 0:01:40.1]} 17... Re8 {[%clk 0:01:50.5]} 18. Rfe1 {[%clk
0:01:28.1]} 18... Be6 {[%clk 0:01:43.7]} 19. Bb3 {[%clk 0:01:23.1]} 19... c5
{[%clk 0:01:39.4]} 20. Bg5 {[%clk 0:00:59]} 20... c4 {[%clk 0:01:35.8]} 21. Ba4
{[%clk 0:00:57.3]} 21... Bd7 {[%clk 0:01:08.2]} 22. Bxd7 {[%clk 0:00:47.1]}
22... Qxd7 {[%clk 0:01:09.1]} 23. Qxc4 {[%clk 0:00:43.6]} 23... Qe6 {[%clk
0:01:08.1]} 24. Qa6 {[%clk 0:00:33.2]} 24... Bc5 {[%clk 0:00:55.2]} 25. Qxe6
{[%clk 0:00:31.4]} 25... Rxe6 {[%clk 0:00:56.1]} 26. Rd5 {[%clk 0:00:31.7]}
26... Rb5 {[%clk 0:00:24.2]} 27. c4 {[%clk 0:00:27]} 27... Ra5 {[%clk 0:00:08]}
28. Bd2 {[%clk 0:00:25.4]} 28... Rxa2 {[%clk 0:00:05.5]} 29. Rxc5 {[%clk
0:00:23.1]} 29... Rxc2 {[%clk 0:00:06.1]} 30. Bh6 {[%clk 0:00:23.2]} 30... f6
{[%clk 0:00:06]} 31. Rc7 {[%clk 0:00:22.3]} 31... g5 {[%clk 0:00:04.2]} 32. Rg7+
{[%clk 0:00:19.7]} 32... Kh8 {[%clk 0:00:03.9]} 33. Rxa7 {[%clk 0:00:19.8]}
33... Rxc4 {[%clk 0:00:01.7]} 1-0

[Event "*** Titled Tuesday Blitz"]
[Site "Chess.com"]
[Date "2020.05.05"]
[Round "4"]
[White "Savagelittlemole"]
[Black "northridgehawk"]
[Result "1-0"]
[WhiteElo "2579"]
[BlackElo "2279"]
[TimeControl "180+1"]
[EndTime "10:40:33 PDT"]
[Termination "Savagelittlemole won on time"]

1. e4 {[%clk 0:03:00.9]} 1... e5 {[%clk 0:02:59.6]} 2. Nf3 {[%clk 0:02:59.2]}
2... Nc6 {[%clk 0:03:00.1]} 3. Bb5 {[%clk 0:02:58.5]} 3... a6 {[%clk 0:03:00.5]}
4. Ba4 {[%clk 0:02:58.4]} 4... Nf6 {[%clk 0:03:01.4]} 5. O-O {[%clk 0:02:58]}
5... b5 {[%clk 0:03:02]} 6. Bb3 {[%clk 0:02:58.3]} 6... Bc5 {[%clk 0:03:02.9]}
7. c3 {[%clk 0:02:56.1]} 7... d6 {[%clk 0:03:03.6]} 8. d4 {[%clk 0:02:55.5]}
8... Bb6 {[%clk 0:03:04.1]} 9. Re1 {[%clk 0:02:52.8]} 9... O-O {[%clk
0:03:02.4]} 10. h3 {[%clk 0:02:52.6]} 10... Bb7 {[%clk 0:03:02.1]} 11. a4 {[%clk
0:02:47.1]} 11... Rb8 {[%clk 0:03:02.2]} 12. axb5 {[%clk 0:02:47.1]} 12... axb5
{[%clk 0:03:03.1]} 13. Bg5 {[%clk 0:02:44.1]} 13... h6 {[%clk 0:03:03.1]} 14.
Bh4 {[%clk 0:02:44.3]} 14... g5 {[%clk 0:03:03.9]} 15. Bg3 {[%clk 0:02:44.1]}
15... Re8 {[%clk 0:02:47.7]} 16. d5 {[%clk 0:02:38.4]} 16... Ne7 {[%clk
0:02:44.5]} 17. Nh2 {[%clk 0:02:36.6]} 17... Ng6 {[%clk 0:02:31]} 18. Ng4 {[%clk
0:02:34.1]} 18... Kg7 {[%clk 0:02:15.6]} 19. Nxf6 {[%clk 0:01:54.5]} 19... Qxf6
{[%clk 0:02:14.7]} 20. Nd2 {[%clk 0:01:52.3]} 20... Nf4 {[%clk 0:02:07.5]} 21.
Nf1 {[%clk 0:01:50.7]} 21... Rh8 {[%clk 0:01:52.1]} 22. Ne3 {[%clk 0:01:48.7]}
22... h5 {[%clk 0:01:51.9]} 23. Nf5+ {[%clk 0:01:46.6]} 23... Kf8 {[%clk
0:01:41.7]} 24. Qf3 {[%clk 0:01:38.1]} 24... g4 {[%clk 0:01:15.3]} 25. hxg4
{[%clk 0:01:36.9]} 25... hxg4 {[%clk 0:01:16.2]} 26. Qxg4 {[%clk 0:01:35.2]}
26... Rg8 {[%clk 0:01:11.9]} 27. Qf3 {[%clk 0:01:31.1]} 27... Nh5 {[%clk
0:00:41.8]} 28. Bh4 {[%clk 0:01:20.1]} 28... Qg6 {[%clk 0:00:41.2]} 29. Ne7
{[%clk 0:01:13.4]} 29... Qg4 {[%clk 0:00:29.3]} 30. Nxg8 {[%clk 0:01:11.3]}
30... Qxh4 {[%clk 0:00:28.1]} 31. Nh6 {[%clk 0:01:09.3]} 31... Nf4 {[%clk
0:00:27.4]} 32. Nf5 {[%clk 0:01:07.3]} 32... Qg5 {[%clk 0:00:18.5]} 33. g3
{[%clk 0:01:05.3]} 33... f6 {[%clk 0:00:17.4]} 34. Qh1 {[%clk 0:00:56.7]} 34...
Kf7 {[%clk 0:00:15.2]} 35. Qh7+ {[%clk 0:00:54.9]} 35... Kf8 {[%clk 0:00:15]}
36. Qh8+ {[%clk 0:00:47.7]} 36... Kf7 {[%clk 0:00:15.4]} 37. Qxb8 {[%clk
0:00:45.7]} 37... Qxg3+ {[%clk 0:00:15.5]} 38. Nxg3 {[%clk 0:00:44.3]} 1-0

[Event "*** Titled Tuesday Blitz"]
[Site "Chess.com"]
[Date "2020.05.05"]
[Round "4"]
[White "kreonx"]
[Black "Shushik"]
[Result "1-0"]
[WhiteElo "2218"]
[BlackElo "2027"]
[TimeControl "180+1"]
[EndTime "10:40:35 PDT"]
[Termination "kreonx won by checkmate"]

1. e4 {[%clk 0:03:00.9]} 1... e5 {[%clk 0:02:59.8]} 2. Nc3 {[%clk 0:02:57]} 2...
Nf6 {[%clk 0:02:59.4]} 3. g3 {[%clk 0:02:56.9]} 3... Bc5 {[%clk 0:02:51.1]} 4.
Bg2 {[%clk 0:02:56.7]} 4... O-O {[%clk 0:02:50.8]} 5. Nge2 {[%clk 0:02:57.2]}
5... Ng4 {[%clk 0:02:46.2]} 6. O-O {[%clk 0:02:57.1]} 6... Qf6 {[%clk
0:02:42.1]} 7. Qe1 {[%clk 0:02:56.7]} 7... c6 {[%clk 0:02:33.1]} 8. h3 {[%clk
0:02:56.5]} 8... Nxf2 {[%clk 0:02:25.5]} 9. Rxf2 {[%clk 0:02:55.9]} 9... Bxf2+
{[%clk 0:02:24.7]} 10. Qxf2 {[%clk 0:02:55.5]} 10... Qg6 {[%clk 0:02:24]} 11. d4
{[%clk 0:02:48.8]} 11... f5 {[%clk 0:02:19.3]} 12. dxe5 {[%clk 0:02:31.1]} 12...
fxe4 {[%clk 0:02:17.7]} 13. Bf4 {[%clk 0:02:11.6]} 13... e3 {[%clk 0:01:33.9]}
14. Qxe3 {[%clk 0:02:02.2]} 14... Qxc2 {[%clk 0:01:33.1]} 15. Qd2 {[%clk
0:01:27]} 15... Qxd2 {[%clk 0:00:58.8]} 16. Bxd2 {[%clk 0:01:27.9]} 16... Re8
{[%clk 0:00:59.2]} 17. Bf4 {[%clk 0:01:25.9]} 17... h6 {[%clk 0:00:51.4]} 18. h4
{[%clk 0:01:25.4]} 18... Na6 {[%clk 0:00:42.4]} 19. Ne4 {[%clk 0:01:23.4]} 19...
Nb4 {[%clk 0:00:33.1]} 20. Nd6 {[%clk 0:01:21.7]} 20... Re7 {[%clk 0:00:31.6]}
21. Be4 {[%clk 0:01:17.3]} 21... b6 {[%clk 0:00:15.1]} 22. a3 {[%clk 0:01:11.6]}
22... Nd5 {[%clk 0:00:15.1]} 23. Bxd5+ {[%clk 0:01:06]} 23... cxd5 {[%clk
0:00:15.3]} 24. Nd4 {[%clk 0:01:00]} 24... Ba6 {[%clk 0:00:15.2]} 25. Rc1 {[%clk
0:00:58.2]} 25... Rf8 {[%clk 0:00:12]} 26. h5 {[%clk 0:00:49.3]} 26... Bd3
{[%clk 0:00:09.5]} 27. Rc7 {[%clk 0:00:47.2]} 27... Be4 {[%clk 0:00:08.8]} 28.
Rxa7 {[%clk 0:00:43.2]} 28... Bd3 {[%clk 0:00:08.5]} 29. Rc7 {[%clk 0:00:40]}
29... Be4 {[%clk 0:00:07.6]} 30. Nc8 {[%clk 0:00:34.9]} 30... Ree8 {[%clk
0:00:06.9]} 31. Nxb6 {[%clk 0:00:34]} 31... Rb8 {[%clk 0:00:06.4]} 32. Nxd7
{[%clk 0:00:27.3]} 32... Rxb2 {[%clk 0:00:06.4]} 33. Nxf8 {[%clk 0:00:26]} 33...
Rg2+ {[%clk 0:00:05.5]} 34. Kf1 {[%clk 0:00:26.1]} 34... Kxf8 {[%clk 0:00:05.8]}
35. e6 {[%clk 0:00:25.2]} 35... Ra2 {[%clk 0:00:05.2]} 36. Bd6+ {[%clk
0:00:25.2]} 36... Ke8 {[%clk 0:00:05.4]} 37. Rc8# {[%clk 0:00:25]} 1-0

[Event "*** Titled Tuesday Blitz"]
[Site "Chess.com"]
[Date "2020.05.05"]
[Round "4"]
[White "Shukh_Nikolay"]
[Black "Justinz"]
[Result "0-1"]
[WhiteElo "2528"]
[BlackElo "2345"]
[TimeControl "180+1"]
[EndTime "10:40:36 PDT"]
[Termination "Justinz won on time"]

1. d4 {[%clk 0:03:00.9]} 1... Nf6 {[%clk 0:02:59.3]} 2. c4 {[%clk 0:03:00.2]}
2... e6 {[%clk 0:02:59.3]} 3. Nf3 {[%clk 0:02:59.1]} 3... b6 {[%clk 0:02:58.1]}
4. g3 {[%clk 0:02:58.5]} 4... Ba6 {[%clk 0:02:58.4]} 5. Qc2 {[%clk 0:02:57.5]}
5... c5 {[%clk 0:02:54.2]} 6. Bg2 {[%clk 0:02:55.6]} 6... Bb7 {[%clk 0:02:53.7]}
7. d5 {[%clk 0:02:47.7]} 7... exd5 {[%clk 0:02:53.2]} 8. cxd5 {[%clk 0:02:41.2]}
8... d6 {[%clk 0:02:49.9]} 9. O-O {[%clk 0:02:37.6]} 9... Nbd7 {[%clk
0:02:45.3]} 10. e4 {[%clk 0:02:36.6]} 10... Be7 {[%clk 0:02:33.3]} 11. Nc3
{[%clk 0:02:35.4]} 11... O-O {[%clk 0:02:32.9]} 12. a4 {[%clk 0:02:34.7]} 12...
Re8 {[%clk 0:02:31.6]} 13. Re1 {[%clk 0:02:31.8]} 13... Bf8 {[%clk 0:02:30.8]}
14. a5 {[%clk 0:02:20.9]} 14... Ba6 {[%clk 0:02:19]} 15. Bf1 {[%clk 0:02:04.5]}
15... Bxf1 {[%clk 0:02:14.3]} 16. Rxf1 {[%clk 0:01:54.5]} 16... bxa5 {[%clk
0:02:12.2]} 17. Nd2 {[%clk 0:01:44.5]} 17... Rb8 {[%clk 0:01:56.1]} 18. Nc4
{[%clk 0:01:42.4]} 18... Rb4 {[%clk 0:01:55.8]} 19. Nxa5 {[%clk 0:01:38.7]}
19... Qc7 {[%clk 0:01:44.1]} 20. Nc6 {[%clk 0:01:36.3]} 20... Rb7 {[%clk
0:01:43.9]} 21. Bd2 {[%clk 0:01:22.8]} 21... Ne5 {[%clk 0:01:41.7]} 22. Ra6
{[%clk 0:01:10.5]} 22... Nf3+ {[%clk 0:01:32.6]} 23. Kg2 {[%clk 0:01:07.2]}
23... Nxd2 {[%clk 0:01:31.3]} 24. Qxd2 {[%clk 0:01:06.2]} 24... Nxe4 {[%clk
0:01:31.3]} 25. Nxe4 {[%clk 0:01:02.8]} 25... Rxe4 {[%clk 0:01:31.5]} 26. Re1
{[%clk 0:01:00.1]} 26... Rxe1 {[%clk 0:01:21.2]} 27. Qxe1 {[%clk 0:00:59.8]}
27... Qd7 {[%clk 0:01:21.4]} 28. Qe4 {[%clk 0:00:47.3]} 28... g6 {[%clk
0:01:15]} 29. b3 {[%clk 0:00:46.7]} 29... h5 {[%clk 0:01:10.6]} 30. h4 {[%clk
0:00:46.2]} 30... Bg7 {[%clk 0:01:09]} 31. Ra5 {[%clk 0:00:26]} 31... Kh7 {[%clk
0:01:06.2]} 32. b4 {[%clk 0:00:24]} 32... cxb4 {[%clk 0:01:04.1]} 33. Nxb4
{[%clk 0:00:23.9]} 33... Bc3 {[%clk 0:01:01.7]} 34. Nc6 {[%clk 0:00:17.7]} 34...
Bxa5 {[%clk 0:01:00.4]} 35. Nxa5 {[%clk 0:00:17.7]} 35... Rb5 {[%clk 0:00:59.4]}
36. Nc6 {[%clk 0:00:17.6]} 36... a5 {[%clk 0:00:53]} 37. Qd3 {[%clk 0:00:11.2]}
37... Rc5 {[%clk 0:00:51.2]} 38. Qd4 {[%clk 0:00:06.9]} 38... Qf5 {[%clk
0:00:49.4]} 39. Ne7 {[%clk 0:00:03.4]} 39... Qe5 {[%clk 0:00:34.7]} 40. Qxe5
{[%clk 0:00:02.1]} 40... dxe5 {[%clk 0:00:34.4]} 41. d6 {[%clk 0:00:02.8]} 41...
Rc2 {[%clk 0:00:34.2]} 0-1

[Event "*** Titled Tuesday Blitz"]
[Site "Chess.com"]
[Date "2020.05.05"]
[Round "4"]
[White "SaySpade4VIP"]
[Black "heartofatiger"]
[Result "1-0"]
[WhiteElo "2617"]
[BlackElo "2392"]
[TimeControl "180+1"]
[EndTime "10:40:37 PDT"]
[Termination "SaySpade4VIP won by resignation"]

1. e4 {[%clk 0:03:00.9]} 1... Nf6 {[%clk 0:02:58.5]} 2. e5 {[%clk 0:03:00.5]}
2... Nd5 {[%clk 0:02:58.6]} 3. d4 {[%clk 0:03:01.2]} 3... d6 {[%clk 0:02:58.8]}
4. Nf3 {[%clk 0:03:00.8]} 4... g6 {[%clk 0:02:57.7]} 5. Bc4 {[%clk 0:02:46]}
5... Nb6 {[%clk 0:02:57.8]} 6. Bb3 {[%clk 0:02:46.5]} 6... Bg7 {[%clk
0:02:58.4]} 7. h3 {[%clk 0:02:42.3]} 7... O-O {[%clk 0:02:57.6]} 8. O-O {[%clk
0:02:41.7]} 8... dxe5 {[%clk 0:02:55.9]} 9. Nxe5 {[%clk 0:02:35.5]} 9... N8d7
{[%clk 0:02:36]} 10. Qe2 {[%clk 0:02:28.6]} 10... c5 {[%clk 0:02:31.4]} 11. Nxd7
{[%clk 0:02:08]} 11... Nxd7 {[%clk 0:02:31.3]} 12. d5 {[%clk 0:01:56.2]} 12...
Nb6 {[%clk 0:02:01]} 13. Nc3 {[%clk 0:01:42.1]} 13... Bf5 {[%clk 0:01:55.6]} 14.
a4 {[%clk 0:01:36.6]} 14... c4 {[%clk 0:01:42.9]} 15. Bxc4 {[%clk 0:01:30]}
15... Nxc4 {[%clk 0:01:41.9]} 16. Qxc4 {[%clk 0:01:30.9]} 16... Bxc2 {[%clk
0:01:42]} 17. Bg5 {[%clk 0:01:26.8]} 17... Re8 {[%clk 0:01:38]} 18. Rfe1 {[%clk
0:01:25.9]} 18... Qd7 {[%clk 0:01:34.2]} 19. Rac1 {[%clk 0:01:08]} 19... Rac8
{[%clk 0:01:28.1]} 20. Qb4 {[%clk 0:01:04.2]} 20... Bxc3 {[%clk 0:01:03]} 21.
bxc3 {[%clk 0:01:02.7]} 21... Bxa4 {[%clk 0:00:59.6]} 22. Bxe7 {[%clk
0:00:57.7]} 22... b5 {[%clk 0:00:32.9]} 23. d6 {[%clk 0:00:48.6]} 23... Rc4
{[%clk 0:00:32]} 24. Qb2 {[%clk 0:00:33.6]} 24... Rec8 {[%clk 0:00:27.1]} 25.
Qd2 {[%clk 0:00:32.3]} 25... b4 {[%clk 0:00:23.8]} 26. cxb4 {[%clk 0:00:18.1]}
26... Rxc1 {[%clk 0:00:23.3]} 27. Rxc1 {[%clk 0:00:19]} 27... Rxc1+ {[%clk
0:00:22.6]} 28. Qxc1 {[%clk 0:00:19.9]} 28... Qe6 {[%clk 0:00:16.8]} 29. Qh6
{[%clk 0:00:17.3]} 29... Qc8 {[%clk 0:00:14.2]} 30. h4 {[%clk 0:00:11]} 30... a6
{[%clk 0:00:13.2]} 31. h5 {[%clk 0:00:10.4]} 31... Bb3 {[%clk 0:00:13.5]} 32.
hxg6 {[%clk 0:00:09.8]} 32... fxg6 {[%clk 0:00:13.7]} 33. Bf6 {[%clk 0:00:06.3]}
33... Qf8 {[%clk 0:00:13.5]} 34. Qxf8+ {[%clk 0:00:06.6]} 34... Kxf8 {[%clk
0:00:13.8]} 35. d7 {[%clk 0:00:07.5]} 1-0

[Event "*** Titled Tuesday Blitz"]
[Site "Chess.com"]
[Date "2020.05.05"]
[Round "4"]
[White "Kaua18"]
[Black "TregubovP"]
[Result "0-1"]
[WhiteElo "2294"]
[BlackElo "2480"]
[TimeControl "180+1"]
[EndTime "10:40:37 PDT"]
[Termination "TregubovP won by resignation"]

1. e4 {[%clk 0:03:00.9]} 1... e6 {[%clk 0:02:59.8]} 2. d4 {[%clk 0:02:59.6]}
2... d5 {[%clk 0:03:00.3]} 3. Nd2 {[%clk 0:02:59.8]} 3... c5 {[%clk 0:02:59.3]}
4. exd5 {[%clk 0:02:59.8]} 4... exd5 {[%clk 0:02:58.8]} 5. Bb5+ {[%clk
0:02:59.2]} 5... Nc6 {[%clk 0:02:59.2]} 6. Ngf3 {[%clk 0:02:59.3]} 6... Qe7+
{[%clk 0:02:59.4]} 7. Qe2 {[%clk 0:02:57.1]} 7... Qxe2+ {[%clk 0:02:58.7]} 8.
Kxe2 {[%clk 0:02:58]} 8... a6 {[%clk 0:02:57.2]} 9. Bxc6+ {[%clk 0:02:56.7]}
9... bxc6 {[%clk 0:02:57.4]} 10. c3 {[%clk 0:02:53.6]} 10... a5 {[%clk
0:02:36.1]} 11. Re1 {[%clk 0:02:52.2]} 11... f6 {[%clk 0:02:33.4]} 12. Kf1+
{[%clk 0:02:42.9]} 12... Kd7 {[%clk 0:02:33.1]} 13. Nb3 {[%clk 0:02:41.6]} 13...
c4 {[%clk 0:02:21.8]} 14. Nc5+ {[%clk 0:02:40.9]} 14... Bxc5 {[%clk 0:02:21.7]}
15. dxc5 {[%clk 0:02:41.8]} 15... Ne7 {[%clk 0:02:19.1]} 16. Nd4 {[%clk
0:02:38.6]} 16... Ng6 {[%clk 0:02:07.1]} 17. Nf5 {[%clk 0:02:31.3]} 17... Rg8
{[%clk 0:02:00]} 18. h4 {[%clk 0:02:14.9]} 18... Kc7 {[%clk 0:01:57.5]} 19. Ne7
{[%clk 0:01:44.1]} 19... Nxe7 {[%clk 0:01:56.1]} 20. Rxe7+ {[%clk 0:01:45]}
20... Kd8 {[%clk 0:01:56.6]} 21. Re2 {[%clk 0:01:42.7]} 21... Bf5 {[%clk
0:01:56.3]} 22. Bf4 {[%clk 0:01:41.7]} 22... Bd3 {[%clk 0:01:56.1]} 23. Re1
{[%clk 0:01:40.8]} 23... Re8 {[%clk 0:01:55.5]} 24. Be3 {[%clk 0:01:40.4]} 24...
Kd7 {[%clk 0:01:54.5]} 25. g3 {[%clk 0:01:39.9]} 25... Rab8 {[%clk 0:01:52.5]}
26. Kg2 {[%clk 0:01:40.2]} 26... Bxe2 {[%clk 0:01:52]} 27. Rxe2 {[%clk
0:01:41.1]} 27... a4 {[%clk 0:01:52.1]} 28. Rc2 {[%clk 0:01:36.6]} 28... a3
{[%clk 0:01:49.7]} 29. bxa3 {[%clk 0:01:35.8]} 29... Ra8 {[%clk 0:01:45.4]} 30.
h5 {[%clk 0:01:28.8]} 30... Rxa3 {[%clk 0:01:43.6]} 31. h6 {[%clk 0:01:26.8]}
31... gxh6 {[%clk 0:01:38.3]} 32. Rb2 {[%clk 0:00:56.3]} 32... Ra7 {[%clk
0:01:23.5]} 33. Bxh6 {[%clk 0:00:50.8]} 33... Re1 {[%clk 0:01:18.2]} 34. Rb8
{[%clk 0:00:27.7]} 34... Rxa2 {[%clk 0:01:00]} 35. Rf8 {[%clk 0:00:27.7]} 35...
Ke7 {[%clk 0:00:56]} 36. Rh8 {[%clk 0:00:27.1]} 36... Ree2 {[%clk 0:00:55.3]}
37. Rxh7+ {[%clk 0:00:27.1]} 37... Ke6 {[%clk 0:00:52.5]} 38. Be3 {[%clk
0:00:19.2]} 38... Rxe3 {[%clk 0:00:51.8]} 39. Rc7 {[%clk 0:00:19.3]} 39... Rxc3
{[%clk 0:00:49.3]} 40. Rxc6+ {[%clk 0:00:19.7]} 40... Ke5 {[%clk 0:00:48.6]} 41.
Rc8 {[%clk 0:00:19.4]} 41... Rcc2 {[%clk 0:00:47]} 42. c6 {[%clk 0:00:19.1]}
42... Kd6 {[%clk 0:00:46.8]} 43. c7 {[%clk 0:00:17.4]} 43... Rxf2+ {[%clk
0:00:46.4]} 44. Kh3 {[%clk 0:00:17.7]} 44... f5 {[%clk 0:00:44.1]} 45. Kh4
{[%clk 0:00:18.1]} 45... Ra7 {[%clk 0:00:39.9]} 46. Kg5 {[%clk 0:00:17.3]} 46...
Rxc7 {[%clk 0:00:39.4]} 47. Rd8+ {[%clk 0:00:17.7]} 47... Kc5 {[%clk 0:00:39.1]}
0-1